Cogmind - Beta 10.2 *** ADVENTURER MODE // 2021.06.07 @ 21:19:28 Player: Patbot Result: Core destroyed Performance ------------- Evolutions (1) 500 Regions Visited (3) 600 Robots Destroyed (60) 300 Value Destroyed (1667) 1667 Prototype IDs (5) 100 Alien Tech Used (0) 0 Bonus (13) 13 TOTAL SCORE: 3180 Bonus ------- Follower Combat Kills 25 Friendly Fire -12 Cogmind --------- Core Integrity 0/400 Matter 272/300 Energy 108/160 System Corruption 18% Temperature Cool (528) Movement Core (250) Ox4 Location -9/Storage Parts ------- > --- POWER (1) -------- Light Nuclear Core > --- PROPULSION (3) --- (None) > --- UTILITY (3) ------ (None) > --- WEAPON (2) ------- Advanced Beam Cannon Advanced Beam Cannon > --- INVENTORY (4) ---- High-capacity Battery (400) Mining Claw Peak State ------------ > --- POWER ------------ Light Nuclear Core > --- PROPULSION ------- Airjet Airjet Airjet > --- UTILITY ---------- Advanced Sensor Array Improved Signal Interpreter Hacking Suite > --- WEAPON ----------- High-powered Shotgun High-powered Shotgun > --- INVENTORY -------- Airjet High-capacity Battery Mining Claw [Rating: 26] Favorites ----------- Power Ion Engine Engine Ion Engine Power Core Light Nuclear Core Propulsion Hover Unit Hover Unit Hover Unit Utility Visual Processing Unit Device Advanced Sensor Array Processor Visual Processing Unit Hackware Hacking Suite Weapon High-powered Shotgun Energy Gun Small Laser Energy Cannon Beam Cannon Ballistic Gun High-powered Shotgun Ballistic Cannon Light Cannon Special Melee Weapon Datajack Build | -11 -10 -9 -9 ------- Run | Scr Mat Mat Sto Slots Evolved 2 | . . 2 . Power . | . . . . Propulsion 1 | . . 1 . Utility 1 | . . 1 . Weapon . | . . . . Parts Attached 42 | 3 13 12 14 Power 3 | 2 . 1 . Engine 2 | 2 . . . Core 1 | . . 1 . Reactor . | . . . . Propulsion 10 | . 4 6 . Treads . | . . . . Leg . | . . . . Wheel . | . . . . Hover 10 | . 4 6 . Flight . | . . . . Utility 16 | . 3 3 10 Device 11 | . . 1 10 Storage . | . . . . Processor 4 | . 3 1 . Hackware 1 | . . 1 . Protection . | . . . . Artifact . | . . . . Weapon 13 | 1 6 2 4 Energy Gun 1 | . 1 . . Energy Cannon 4 | . 2 . 2 Ballistic Gun 6 | 1 2 2 1 Ballistic Cannon 1 | . 1 . . Launcher . | . . . . Special Weapon . | . . . . Impact Weapon . | . . . . Slashing Weapon . | . . . . Piercing Weapon . | . . . . Special Melee Weapon 1 | . . . 1 Unidentified Prototypes 1 | . . . 1 Parts Lost 14 | . 1 3 10 Power 1 | . . 1 . Propulsion 4 | . . 1 3 Utility 4 | . . . 4 Weapon 5 | . 1 1 3 Highest Loss Streak 6 | . 1 2 6 Average Slot Usage (%) 82 | . 78 93 73 Engine 6 | . 14 6 . Core 5 | . . 4 11 Hover 23 | . 27 29 13 Device 4 | . . 3 10 Processor 15 | . 13 22 11 Hackware 3 | . . 5 4 Energy Gun 4 | . 10 4 . Ballistic Gun 11 | . 6 15 12 Ballistic Cannon 1 | . 4 1 . Special Melee Weapon 2 | . . . 8 Naked Turns . | . . . . Heaviest Build 15 | 6 9 13 15 Greatest Support 27 | 3 12 27 27 Greatest Overweight (x) 3 | 1 1 1 3 Average Overweight (x) . | . . . 1 Largest Inventory Capacity 4 | 4 4 4 4 Average Capacity 4 | 4 4 4 4 Most Carried 4 | 2 4 4 4 Average Carried 3 | . 2 3 3 Final Capacity 4 | 4 4 4 4 Final Carried 4 | . 3 4 2 Class Distribution -------------------- 66% | Mutant 33% | Hacker-Mutant Dominant Class ---------------- Mutant | -10/Materials Hacker-Mutant | -9/Materials Mutant | -9/Storage Resources | -11 -10 -9 -9 ----------- Run | Scr Mat Mat Sto Matter Collected 1308 | 230 158 602 318 Remotely . | . . . . Salvage Created 1808 | . 163 1098 547 Parts 128 | . 18 81 29 Haulers Intercepted 1 | . . 1 . Recyclers Shooed 1 | . 1 . . Parts Field Recycled . | . . . . Retrieved Matter . | . . . . Parts Self-Destructed . | . . . . Prevented . | . . . . Kills | -11 -10 -9 -9 ------- Run | Scr Mat Mat Sto Combat Hostiles Destroyed 46 | . 5 28 13 Guns 43 | . 4 28 11 Cannons 3 | . 1 . 2 Classes Destroyed 10 | . 4 5 1 Worker 2 | . 1 . 1 Hauler 1 | . . 1 . Recycler 1 | . . 1 . Operator 3 | . . 2 1 Watcher 7 | . 1 5 1 Swarmer 11 | . 3 6 2 Grunt 23 | . 2 14 7 Brawler 2 | . . . 2 Duelist 2 | . . 1 1 Sentry 8 | . . 7 1 Best Kill Streak 9 | . 6 9 6 Combat Bots Only 6 | . 5 5 6 Max Kills in Single Turn 2 | . 2 2 2 Gunslinging 1 | . . 1 . Exploded . | . . . . Melee . | . . . . Uniques/NPCs Destroyed . | . . . . Combat | -11 -10 -9 -9 -------- Run | Scr Mat Mat Sto Damage Taken 1623 | 1 228 511 883 Core 451 | . 49 140 262 Absorbed by Shields 83 | . . 83 . Core Remaining (%) 90 | 100 80 . . Volleys Fired 156 | . 28 77 51 Largest 2 | . 2 2 2 Hottest 136 | . 80 75 136 Shots Fired 263 | . 50 144 69 Gun 229 | . 32 142 55 Cannon 34 | . 18 2 14 Launcher . | . . . . Special . | . . . . Kinetic 200 | . 22 123 55 Thermal 63 | . 28 21 14 Explosive . | . . . . Electromagnetic . | . . . . Robot Hit Streak 15 | . 11 15 12 Robot Miss Streak 8 | . 4 4 8 Penetration Max . | . . . . Secondary Targets 4 | . . 4 . Max Gunslinging Chain 1 | . . 1 . Shots Hit Robots 211 | . 28 121 62 Core Hits 103 | . 13 67 23 Critical Hits 6 | . 1 1 4 Critical Kills 2 | . . 1 1 Critical Parts Destroyed 4 | . 1 . 3 Melee Attacks 12 | . . . 12 Impact . | . . . . Slashing . | . . . . Piercing . | . . . . Sneak Attacks 8 | . . . 8 Combat Hostiles . | . . . . Follow-up Attacks . | . . . . Damage Inflicted 3582 | 3 335 2280 964 Guns 3234 | . 193 2261 780 Cannons 345 | . 142 19 184 Explosions . | . . . . Melee . | . . . . Ramming 3 | 3 . . . Kinetic 3003 | . 109 2114 780 Thermal 576 | . 226 166 184 Explosive . | . . . . Electromagnetic . | . . . . Impact . | . . . . Slashing . | . . . . Piercing . | . . . . Highest Corruption 18 | . 1 . 18 Average Corruption 5 | . 1 . 9 Corruption Purged . | . . . . Effects 24 | . 2 . 22 Message Errors 7 | . 1 . 6 Matter Fused 5 | . . . 5 Energy Discharges 4 | . 1 . 3 Data Loss (minor) 2 | . . . 2 Misfires 2 | . . . 2 Targeting Errors 3 | . . . 3 Weapon Failures 1 | . . . 1 Overload Shots . | . . . . Overflow Damage . | . . . . Projectiles . | . . . . Explosions . | . . . . Melee . | . . . . Knockbacks 1 | . . 1 . Impact . | . . . . Kinetic 1 | . . 1 . Secondary . | . . . . Self-Inflicted Damage 1 | 1 . . . Shots . | . . . . Rammed 1 | 1 . . . Targets Rammed 1 | 1 . . . Kicked . | . . . . Crushed . | . . . . Highest Temperature 528 | . 308 38 528 Average Temperature 66 | . 80 12 173 Received Heat Transfer 528 | . 81 258 189 Effects 3 | . . . 3 Shutdowns 1 | . . . 1 Energy Bleed 1 | . . . 1 Damage (core) 1 | . . . 1 Siege Activations . | . . . . Robots Corrupted . | . . . . Combat Hostiles . | . . . . Parts Fried . | . . . . Impact Corruptions . | . . . . Robots Melted . | . . . . Combat Hostiles . | . . . . Parts Melted . | . . . . Heat Transferred 1204 | . 496 375 333 Parts Sabotaged . | . . . . Parts Stolen . | . . . . Parts Stripped . | . . . . Power Chain Reactions . | . . . . Missiles Intercepted . | . . . . Alert | -11 -10 -9 -9 ------- Run | Scr Mat Mat Sto Peak Influence 341 | . 177 341 290 Initial 76 | . . . 76 Average 96 | . 63 123 100 Maximum Alert Level 1 | . . 1 1 Low Security (%) 89 | 100 100 77 92 Level 1 10 | . . 22 7 Level 2 . | . . . . Level 3 . | . . . . Level 4 . | . . . . Level 5 . | . . . . High Security . | . . . . Max Security . | . . . . Squads Dispatched 12 | . 1 6 5 Investigation 5 | . 1 4 . Extermination . | . . . . Reinforcement 5 | . . 2 3 Assault 2 | . . . 2 Garrison . | . . . . Intercept . | . . . . Construction Impeded 1 | . . 1 . Haulers Reinforced . | . . . . Stealth | -11 -10 -9 -9 --------- Run | Scr Mat Mat Sto Distress Signals 6 | . . 2 4 Communications Jammed . | . . . . Distress Signals . | . . . . Times Spotted 91 | . 16 44 31 Peak Tracking Total 10 | . 3 7 10 Tactical Retreats 6 | . 1 2 3 Traps | -11 -10 -9 -9 ------- Run | Scr Mat Mat Sto Traps Triggered 2 | . 1 1 . Indirectly . | . . . . Trap Hack Attempts . | . . . . Triggered . | . . . . Disarmed . | . . . . Reprogrammed . | . . . . Reused . | . . . . Traps Extracted . | . . . . Installed . | . . . . Triggered . | . . . . Machines | -11 -10 -9 -9 ---------- Run | Scr Mat Mat Sto Machines Disabled 4 | . . 3 1 Max in Single Turn 1 | . . 1 1 Machines Sabotaged . | . . . . Garrisons Compromised . | . . . . Overloaded Fab Kills . | . . . . Fab Network Shutdowns . | . . . . Hacking | -11 -10 -9 -9 --------- Run | Scr Mat Mat Sto Machines Accessed 17 | . 7 8 2 Terminals 17 | . 7 8 2 Fabricators . | . . . . Repair Stations . | . . . . Recycling Units . | . . . . Scanalyzers . | . . . . Garrison Access . | . . . . Total Hacks 65 | . 20 39 6 Successful 54 | . 16 33 5 Failed 11 | . 4 6 1 Catastrophic . | . . . . Database Lockouts . | . . . . Manual 32 | . 15 14 3 Terminals 65 | . 20 39 6 Fabricators . | . . . . Repair Stations . | . . . . Recycling Units . | . . . . Scanalyzers . | . . . . Garrison Access . | . . . . Terminal Hacks 35 | . 7 24 4 Record 3 | . . 2 1 Prototype ID Bank 2 | . . 1 1 Open Door 1 | . . . 1 Emergency Access Points 3 | . 1 2 . Terminal Index 3 | . 1 1 1 Alert Level 8 | . 2 6 . Unreport Threat 4 | . . 4 . Dispatch Records 2 | . 1 1 . Maintenance Status 2 | . . 2 . Security Status 2 | . . 2 . Surveillance Status 1 | . . 1 . Hauler Manifests 2 | . 1 1 . Registered Prototypes 1 | . . 1 . Zone Layout 1 | . 1 . . Fabricator Hacks . | . . . . Repair Station Hacks . | . . . . Recycling Unit Hacks . | . . . . Scanalyzer . | . . . . Garrison Access Hacks . | . . . . Unauthorized Hacks 19 | . 9 9 1 Terminals 19 | . 9 9 1 Track 2 | . 1 1 . Assimilate 2 | . 1 1 . Botnet 15 | . 7 7 1 Fabricators . | . . . . Repair Stations . | . . . . Recycling Units . | . . . . Scanalyzers . | . . . . Garrison Access . | . . . . Data Cores Recovered . | . . . . Used . | . . . . Hacking Detections 15 | . 6 8 1 Full Trace Events 4 | . 1 3 . Feedback Events . | . . . . Feedback Blocked . | . . . . Robot Schematics Acquired . | . . . . Robots Built . | . . . . Matter . | . . . . Time . | . . . . Total Robot Build Rating . | . . . . Part Schematics Acquired . | . . . . Parts Built . | . . . . Matter . | . . . . Time . | . . . . Total Part Build Rating . | . . . . Parts Repaired . | . . . . Time . | . . . . Parts Recycled . | . . . . Recycled Matter . | . . . . Retrieved Matter . | . . . . Retrieved Components . | . . . . Parts Scanalyzed . | . . . . Part Schematics Acquired . | . . . . Parts Damaged . | . . . . Bothacking | -11 -10 -9 -9 ------------ Run | Scr Mat Mat Sto Used RIF Installer . | . . . . Robots Hacked 4 | . . . 4 Non-combat 4 | . . . 4 Combat . | . . . . Robot Hacks Applied 6 | . . . 6 no_distress 5 | . . . 5 check_alert 1 | . . . 1 Relay Couplers Released . | . . . . Robots Rewired . | . . . . Allies Hacked . | . . . . Hacks Repelled . | . . . . Allies | -11 -10 -9 -9 -------- Run | Scr Mat Mat Sto Total Allies 3 | . . 1 2 Largest Group 2 | . . 1 2 Highest-Rated Group 62 | . . 10 62 Highest-Rated Ally 31 | . . 10 31 Total Orders 1 | . . . 1 EXPLORE 1 | . . . 1 Ally Attacks 6 | . . . 6 Total Damage 103 | . . . 103 Kills 1 | . . . 1 Allies Corrupted . | . . . . Allies Melted . | . . . . Intel | -11 -10 -9 -9 ------- Run | Scr Mat Mat Sto Robot Analysis Total . | . . . . Derelict Logs Recovered . | . . . . Drone Launches 16 | . . . 16 Drone Recoveries 2 | . . . 2 Exploration | -11 -10 -9 -9 ------------- Run | Scr Mat Mat Sto Turns Passed 2875 | 51 808 1074 942 Spaces Moved 2782 | 52 1156 970 604 Core 276 | 52 6 . 218 Treads . | . . . . Legs . | . . . . Wheels . | . . . . Hover 2506 | . 1150 970 386 Flight . | . . . . Fastest Speed 50 | 50 56 52 52 Average Speed 66 | 84 56 53 105 Slowest Speed 200 | 100 100 116 200 Overloaded Moves . | . . . . Propulsion Burnouts . | . . . . Robots Hopped . | . . . . Cave-ins Triggered 1 | . . . 1 Exploration Rate (%) 55 | 4 95 65 57 Regions Visited 3 Branch Regions 1 Pre-discovered Areas . | . . . . Known Exits Taken 2 | . 1 1 . Unknown Exits Taken 1 | 1 . . . Scrap Searched . | . . . . Spaces Dug . | . . . . Terrain Destroyed . | . . . . Melee . | . . . . Projectile . | . . . . AOE . | . . . . Terrain Rammed . | . . . . Walls Destroyed . | . . . . Machines Disabled . | . . . . Actions | -11 -10 -9 -9 --------- Run | Scr Mat Mat Sto Total 3539 | 59 1266 1381 833 Wait 478 | . 49 300 129 Move 2780 | 52 1155 969 604 Hop . | . . . . Pick Up 48 | 3 17 15 13 Fast Attach . | . . . . Attach 28 | 3 9 5 11 Detach . | . . . . Swap 14 | . 4 7 3 Drop 23 | 1 4 8 10 Fire 156 | . 28 77 51 Melee 12 | . . . 12 Ram . | . . . . Kick . | . . . . Crush . | . . . . Escape Stasis . | . . . . Rewire . | . . . . Trap . | . . . . Miscellaneous . | . . . . Route ------- -11/Scrapyard -10/Materials (discovered 4 exits: *Mat x3 / *Min) -9/Materials (discovered 4 exits: *Mat x2 / *Min / *Sto) -9/Storage History --------- Turn | Location | Event 6 | -11/Scrapyard | Discovered new exit (range 15) 52 | -11/Scrapyard | Entered Materials 65 | -10/Materials | Discovered new exit (range 13) 125 | -10/Materials | Discovered new exit (range 14) 167 | -10/Materials | Discovered new exit (range 15) 307 | -10/Materials | Build established: Mutant 512 | -10/Materials | Discovered new exit (range 10) 676 | -10/Materials | Identified exit to Materials 750 | -10/Materials | Identified exit to Mines 860 | -10/Materials | Entered another Materials area 860 | -9/Materials | Evolved 2 slots: Propulsion x1, Utility x1 1277 | -9/Materials | Discovered new exit (range 18) 1300 | -9/Materials | Identified exit to Mines 1557 | -9/Materials | Discovered new exit (range 4) 1559 | -9/Materials | Identified exit to Materials 1680 | -9/Materials | Build established: Hacker-Mutant 1687 | -9/Materials | Discovered exit to Materials (range 18) 1921 | -9/Materials | Discovered new exit (range 4) 1922 | -9/Materials | Identified exit to Storage 1934 | -9/Materials | Entered Storage 1934 | -9/Storage | Accompanied by 1 ally 2336 | -9/Storage | Crushed by falling debris 2336 | -9/Storage | Core integrity fell below 50% 2367 | -9/Storage | Lost 6 parts (3n2u1w) 2647 | -9/Storage | Build established: Mutant 2794 | -9/Storage | Met a pair of Derelict thieves 2854 | -9/Storage | System corruption reached 10% 2869 | -9/Storage | Core integrity fell below 20% 2877 | -9/Storage | Core destroyed Last Messages --------------- 02857_ Hpw. Shotgun destroyed. 02857_ Door Terminal disabled. 02858_ Adv. Sensor Array destroyed. 02858_ System corrupted by crushing effect (+3). 02860_ System corrupted: Component data lost. 02860_ System corrupted: Adv. Beam Cannon targeting data glitched. 02865_ Imp. Signal Interpreter destroyed. 02865_ System corrupted by crushing effect (+3). 02866_ B-36 Bruiser suffers critical hit. 02866_ Destroyed Lgt. Treads. 02869_ B-36 Bruiser destroyed. 02870_ Power failure, Lgt. Nuclear Core shutdown. 02872_ G-34 Mercenary suffers critical hit. 02872_ Destroyed Aluminum Leg. 02875_ Overheating: Energy bleed (-29). 02875_ G-34 Mercenary suffers critical hit. 02875_ G-34 Mercenary destroyed. 02877_ Overheating: Core damaged (-52). Map ----- +----------------------------------------------------+ | """" #??# # #??# #???# %%+== #?? | | #?## ###########??# ##### #!% """" #?? | | ########?## ##???????????# #= ""??" #?? | | ##"T"###### #####????????####### # ""???" #?? | | # # + ##????????"""??# + "???"" #?? | | # # # T#??????#?"T"### # "??"" #?? | | # # ### ##??????# # # """" #?? | | # """" + ## #??????# """ # # #?? | | # """" # ## #??????# """ # ###########?? | | # """" # ## #??????# """ # % #???????????? | | # """" =# ## #??????# # #???????????? | | # # ######??????# """ # #???????????? | | ########### #???????????# """ # #???????????? | | ??????????#####???????????# """ # #???????????? | | ??????????????????????????# + #???????????? | | ??????????????????????????# """ # #???????????? | | ??????????????????????????# """ # #???????????? | | ??????????????????????????# """ # #???????????? | | ??????????????????????????# # #???????????? | | ?????????????#####+############### #######+#???? | | ???????????? *!%=[ #?? | | ???????????? " %%= " #?? | | ???????????? "%" ! ! "%" #?? | | ??????????????????##########/############### #?? | | ????????????????????????#%ggg##??????????????? #?? | | ????????????????????????#@%=m #??????????????????? | | ????????????????????????##"%"###?????????????????? | | ????????????????????????#! #?????????????????? | | ????????????????????????# #?????????????????? | | ????????????????????????#[[ ] #?????????????????? | | ????????????????????????#[ [ ]#?????????????????? | | ????????????????????????########?????????????????? | | ?????????????????????????????????????????????????? | | ?????????????????????????????????????????????????? | | ?????????????????????????????????????????????????? | | ?????????????????????????????????????????????????? | | ?????????????????????????????????????????????????? | | ?????????????????????????????????????????????????? | | ?????????????????????????????????????????????????? | | ?????????????????????????????????????????????????? | | ?????????????????????????????????????????????????? | | ?????????????????????????????????????????????????? | | ?????????????????????????????????????????????????? | | ?????????????????????????????????????????????????? | | ?????????????????????????????????????????????????? | | ?????????????????????????????????????????????????? | | ?????????????????????????????????????????????????? | | ?????????????????????????????????????????????????? | | ?????????????????????????????????????????????????? | | ?????????????????????????????????????????????????? | +----------------------------------------------------+ Best States ------------- Heat Dissipation 28 Energy Generation 14 Energy Capacity 250 Matter Stores 300 Matter Capacity 300 Sight Range 18 Robot Scan Range 16 Terrain Scan Density 10 Resistance: KI 20 Resistance: TH 20 Resistance: EX 20 Resistance: EM 20 Resistance: I 20 Resistance: S 20 Resistance: P 20 Evasion (%) 54 Targeting Accuracy 5 Offensive Hacking 20 Item Schematics ----------------- None Robot Schematics ------------------ None Fabricated ------------ Nothing Alien Tech Used ----------------- None Achievements -------------- Quantum Hacking Release The Drones! Unlikely Earthworm Challenges ------------ None Game ------ Seed HelicalDeliverySpear Manual? 0 Play Time 00:50:27 Cumulative 30.0 hours Start 2021.06.05 @ 16:30:43 End 2021.06.07 @ 21:19:28 Sessions 3 Manual Loads 0 Difficulty Adventurer Special Mode None Game No. 55 Rogue 53 Adventurer 2 Explorer 0 Win Type - Total 0 Types 0/0/0/0/0/0/0/0/0 Lore% 15 Gallery% 29 Achievement% 15 Wizard Run 0 Options --------- ASCII 0 Keyboard 0 Movement Numpad Keybinds 0 Fullscreen 1 Font 20/SmallcapsGlow Map View 50x50 Tactical HUD 1 Map Filters NONE Filters NONE Steam 1 RUN: 8c8ae414-d21b-477f-ad2d-78c117843c21